bitfinex/quotes_BTCUSD_20251201
["timestamp","ask_amount","ask_price","bid_price","bid_amount"]
[1764624155114,0.2435437,86227.0,86224.0,0.01146241]
[1764624155308,0.23194912,86226.0,86224.0,0.01246241]
[1764624155578,0.23195129,86225.0,86224.0,0.01246241]
[1764624155745,0.0115981,86221.0,86218.0,9.066e-05]
[1764624155983,0.01159716,86228.0,86218.0,9.066e-05]
[1764624156106,0.01159743,86226.0,86224.0,0.001]
[1764624156329,0.23195129,86225.0,86224.0,0.001]
[1764624157181,0.23196717,86220.0,86218.0,9.066e-05]
[1764624157391,0.0115981,86221.0,86218.0,9.066e-05]
[1764624157594,0.23196489,86220.0,86218.0,0.00109066]
[1764624157792,0.23196489,86220.0,86219.0,0.01146241]
[1764624158197,0.0115981,86221.0,86218.0,9.066e-05]
[1764624158402,0.24355167,86224.0,86218.0,9.066e-05]
[1764624158403,0.2319555,86224.0,86223.0,0.01146241]
[1764624158833,0.01159756,86225.0,86218.0,9.066e-05]
[1764624159032,0.24354607,86226.0,86224.0,0.01146241]
[1764624159237,0.01185282,86227.0,86224.0,0.01146241]
[1764624159238,0.24380127,86227.0,86224.0,0.01146241]
[1764624159445,0.00025553,86227.0,86219.0,0.001]
[1764624159649,0.00025553,86227.0,86223.0,0.01146241]
[1764624160216,0.00025553,86227.0,86226.0,0.01146241]
[1764624161424,0.00025553,86227.0,86226.0,0.01246241]
[1764624161999,0.00025553,86227.0,86226.0,0.01146241]
[1764624162387,0.00025553,86227.0,86226.0,0.01246241]
[1764624165670,0.00025553,86227.0,86226.0,0.03106241]
[1764624166271,0.00025553,86227.0,86226.0,0.43106241]
[1764624166471,0.00025553,86227.0,86226.0,0.43006241]
[1764624166853,0.00025553,86227.0,86226.0,0.43106241]
[1764624167540,0.00025553,86227.0,86226.0,0.43006241]
[1764624167898,0.00025553,86227.0,86226.0,0.43206241]
[1764624170112,0.00025553,86227.0,86226.0,0.66401101]
[1764624174852,0.00025553,86227.0,86226.0,0.96841101]
[1764624175155,0.00025553,86227.0,86226.0,0.98697101]
[1764624175296,0.00025553,86227.0,86226.0,1.049494]
[1764624175503,0.00025553,86227.0,86226.0,1.07259413]
[1764624176190,0.00025553,86227.0,86226.0,1.07059413]
[1764624176642,0.00025553,86227.0,86226.0,1.07259413]
[1764624180186,0.00025553,86227.0,86226.0,1.05403413]
[1764624180357,0.00025553,86227.0,86226.0,1.07259413]
[1764624180836,0.0001,86229.0,86228.0,0.62892862]
[1764624180969,0.0387903,86239.0,86238.0,0.55491632]
[1764624181175,0.0387903,86239.0,86238.0,0.58493873]
[1764624181380,0.0387903,86239.0,86238.0,0.98493873]
[1764624181781,0.0387903,86239.0,86238.0,0.63191632]
[1764624181963,0.0387903,86239.0,86238.0,0.66193873]
[1764624183229,0.0387903,86239.0,86238.0,0.41346241]
[1764624183404,0.0387903,86239.0,86238.0,0.42056]
[1764624183568,0.0387903,86239.0,86238.0,0.43202241]
[1764624184178,0.0387903,86239.0,86238.0,0.43002241]
[1764624184633,0.0387903,86239.0,86231.0,0.01159675]
[1764624184845,0.0387903,86239.0,86238.0,0.03002241]
[1764624185274,0.0387903,86239.0,86238.0,0.01856]
[1764624185390,0.0387903,86239.0,86238.0,0.02056]
[1764624185597,0.0387903,86239.0,86238.0,0.002]
[1764624185921,0.0387903,86239.0,86238.0,0.01856]
[1764624186411,0.01159608,86236.0,86235.0,0.01856]
[1764624187226,0.23191946,86237.0,86223.0,0.41159783]
[1764624187438,0.23191946,86237.0,86232.0,0.01146241]
[1764624187639,0.01159621,86235.0,86223.0,0.4]
[1764624187824,0.01159662,86232.0,86226.0,0.01146241]
[1764624188026,0.01159689,86230.0,86224.0,0.01856]
[1764624188264,0.01159689,86230.0,86223.0,0.4]
[1764624188464,0.243532,86231.0,86228.0,0.01146241]
[1764624188780,0.01159675,86231.0,86224.0,0.01856]
[1764624188964,0.01159635,86234.0,86225.0,0.01146241]
[1764624189161,0.01159648,86233.0,86224.0,0.01856]
[1764624189363,0.01159716,86228.0,86224.0,0.01856]
[1764624189566,0.01159743,86226.0,86223.0,0.4]
[1764624189769,0.01159743,86226.0,86218.0,9.066e-05]
[1764624189770,0.0115981,86221.0,86218.0,9.066e-05]
[1764624189948,0.0115981,86221.0,86219.0,0.01856]
[1764624190170,0.24356091,86221.0,86219.0,0.01856]
[1764624190375,0.0115981,86221.0,86218.0,9.066e-05]
[1764624190703,0.01159796,86222.0,86219.0,0.01856]
[1764624191058,0.23196474,86220.0,86219.0,0.01856]
[1764624191465,0.23196474,86220.0,86218.0,0.01865066]
[1764624191913,0.23196474,86220.0,86218.0,9.066e-05]
[1764624192653,0.23196474,86220.0,86218.0,0.00109066]
[1764624193208,0.23196474,86220.0,86218.0,9.066e-05]
[1764624193430,0.23196474,86220.0,86218.0,0.00109066]
[1764624194531,0.23196474,86220.0,86195.0,0.2320313]
[1764624194532,1.15989125,86215.0,86156.0,0.14607888]
[1764624194731,1.15989125,86215.0,86122.0,0.46445207]
[1764624194732,0.99100987,86170.0,86144.0,0.01160846]
[1764624194929,0.99100987,86160.0,86158.0,0.01146241]
[1764624195129,0.24373124,86161.0,86154.0,0.01146241]
[1764624195330,0.01160658,86158.0,86157.0,0.01146241]
[1764624195512,0.24373824,86158.0,86157.0,0.01146241]
[1764624196116,0.01160698,86155.0,86141.0,0.4]
[1764624196317,0.01160766,86150.0,86149.0,0.01146241]
[1764624196995,0.23217208,86143.0,86141.0,0.41146241]
[1764624197214,0.01160873,86142.0,86138.0,0.01146241]
[1764624197419,0.01160927,86138.0,86132.0,0.00352591]
[1764624197621,0.23219634,86134.0,86132.0,0.00352591]
[1764624198674,0.01160806,86147.0,86133.0,0.01146241]
[1764624199012,0.99100987,86160.0,86132.0,0.00352591]
[1764624199013,0.00465362,86171.0,86137.0,0.01160941]
[1764624199164,0.0116059,86163.0,86137.0,0.01160941]
[1764624199374,0.0116059,86163.0,86134.0,0.04664424]
[1764624199375,0.24372596,86163.0,86139.0,0.01160914]
[1764624199548,0.01160604,86162.0,86160.0,0.01146241]
[1764624199748,0.23212358,86161.0,86160.0,0.01146241]
[1764624200067,0.01160577,86164.0,86149.0,0.01146241]
[1764624200275,0.01160577,86164.0,86159.0,0.01146241]
[1764624200513,0.01160308,86184.0,86168.0,0.01146241]
[1764624200670,0.24367821,86180.0,86178.0,0.01146241]
[1764624200853,0.01160483,86171.0,86168.0,0.01146241]
[1764624201458,0.23209933,86170.0,86168.0,0.01146241]
[1764624201672,0.0116055,86166.0,86165.0,0.01146241]
[1764624201873,0.01160469,86172.0,86169.0,0.01146241]
[1764624202327,0.23209924,86171.0,86169.0,0.01146241]
[1764624204091,0.23209924,86171.0,86169.0,0.01246241]
[1764624204551,0.23209924,86171.0,86169.0,0.01146241]
[1764624204883,0.23209924,86171.0,86169.0,0.01246241]
[1764624205078,1.00261349,86180.0,86169.0,0.01246241]
[1764624205079,0.01160415,86176.0,86169.0,0.01246241]
[1764624205294,0.01160469,86172.0,86169.0,0.01246241]
[1764624205498,0.24370103,86172.0,86169.0,0.01246241]
[1764624206612,0.23209829,86171.0,86169.0,0.01246241]
[1764624206784,0.01160456,86173.0,86169.0,0.01146241]
[1764624206953,0.01160442,86174.0,86169.0,0.01146241]
[1764624207153,0.01160469,86172.0,86171.0,0.01146241]
[1764624207363,0.01160456,86173.0,86169.0,0.01146241]
[1764624207814,0.01160456,86173.0,86169.0,0.01246241]
[1764624208202,0.24369167,86175.0,86165.0,0.01160564]
[1764624208400,0.04664424,86202.0,86167.0,0.01160537]
[1764624208575,0.04664424,86202.0,86161.0,0.0186]
[1764624208576,0.01160213,86191.0,86173.0,0.01160456]
[1764624208798,0.01160133,86197.0,86177.0,0.01160402]
[1764624209011,0.01160187,86193.0,86188.0,0.01146241]
[1764624209191,0.01160213,86191.0,86188.0,0.01146241]
[1764624209376,0.23204576,86190.0,86188.0,0.01146241]
[1764624209571,0.01160362,86180.0,86174.0,0.0186]
[1764624209820,0.24371128,86168.0,86167.0,0.01146241]
[1764624210022,0.23212411,86161.0,86159.0,0.0186]
[1764624210233,0.0116051,86169.0,86153.0,0.23214401]
[1764624210439,0.01160469,86172.0,86165.0,0.01146241]
[1764624210770,0.01160388,86178.0,86162.0,0.01160604]
[1764624210972,0.01160402,86177.0,86176.0,0.01146241]
[1764624211209,0.23207648,86179.0,86174.0,0.001]
[1764624211497,0.01160402,86177.0,86168.0,0.01146241]
[1764624211702,0.01160402,86177.0,86162.0,0.03020604]
[1764624211703,0.01160456,86173.0,86165.0,0.001]
[1764624211896,0.23208705,86175.0,86165.0,0.01260564]
[1764624211897,0.01160429,86175.0,86165.0,0.01260564]
[1764624212100,0.01160429,86175.0,86168.0,0.01146241]
[1764624212266,0.01160442,86174.0,86173.0,0.01146241]
[1764624212457,0.01160429,86175.0,86174.0,0.01146241]
[1764624212657,0.01160429,86175.0,86168.0,0.01146241]
[1764624213008,0.01160402,86177.0,86174.0,0.01146241]
[1764624213199,0.24368306,86178.0,86174.0,0.001]
[1764624213357,0.01160375,86179.0,86174.0,0.001]
[1764624213590,1.22305562,86190.0,86174.0,0.001]
[1764624213591,0.323,86199.0,86174.0,0.0186]
[1764624213783,0.23205804,86186.0,86174.0,0.25068812]
[1764624213980,0.24366024,86186.0,86185.0,0.01146241]
[1764624214182,0.01160187,86193.0,86178.0,0.23207631]
[1764624214380,0.24364844,86190.0,86188.0,0.01146241]
[1764624214802,0.24364844,86190.0,86188.0,0.0115787]
[1764624216409,0.0751863,86190.0,86188.0,0.0115787]
[1764624216813,0.17187223,86191.0,86188.0,0.0115787]
[1764624217017,0.23204617,86190.0,86188.0,0.0115787]
[1764624217236,0.17187223,86191.0,86188.0,0.0115787]
[1764624217237,0.01160213,86191.0,86188.0,0.0115787]
[1764624217462,0.01160213,86191.0,86189.0,0.01146241]
[1764624217664,0.01160213,86191.0,86190.0,0.01146241]
[1764624217838,0.01160213,86191.0,86188.0,0.00011629]
[1764624218054,0.24364236,86192.0,86191.0,0.01146241]
[1764624218555,0.23204551,86190.0,86188.0,0.0115787]
[1764624218958,0.01160213,86191.0,86188.0,0.0115787]
[1764624219161,0.01160119,86198.0,86188.0,0.00011629]
[1764624219363,0.01160133,86197.0,86196.0,0.01146241]
[1764624219531,0.01160079,86201.0,86188.0,0.00011629]
[1764624219733,0.01160079,86201.0,86192.0,0.011602]
[1764624219977,0.01160106,86199.0,86188.0,0.2437678]
[1764624220181,0.01160092,86200.0,86199.0,0.01146241]
[1764624220395,0.01160173,86194.0,86188.0,0.00011629]
[1764624220606,0.23204817,86189.0,86188.0,0.00011629]
[1764624222535,0.23204817,86189.0,86188.0,0.00111629]
[1764624222889,0.23204817,86189.0,86188.0,0.00011629]
[1764624223207,0.3412154,86189.0,86188.0,0.00111629]
[1764624223633,0.6642154,86189.0,86188.0,0.00011629]
[1764624223927,0.6827754,86189.0,86188.0,0.00011629]
[1764624225107,0.55504817,86189.0,86188.0,0.00011629]
[1764624226352,0.01160173,86194.0,86188.0,0.00011629]
[1764624226558,0.01160092,86200.0,86188.0,0.01171883]
[1764624226735,0.23201325,86202.0,86190.0,0.24350713]
[1764624226936,0.24362621,86198.0,86197.0,0.01146241]
[1764624227797,0.01159931,86212.0,86199.0,0.01146241]
[1764624227971,0.24359792,86208.0,86207.0,0.01146241]
[1764624228265,0.23199486,86209.0,86207.0,0.01146241]
[1764624228477,0.01159931,86212.0,86201.0,0.01160079]
[1764624228667,0.01159944,86211.0,86207.0,0.01146241]
[1764624228838,0.01159729,86227.0,86209.0,0.01159971]
[1764624229079,0.01159769,86224.0,86219.0,0.01146241]
[1764624229279,0.0115981,86221.0,86213.0,0.01159917]
[1764624229629,0.0387903,86239.0,86219.0,0.01146241]
[1764624229630,0.24354951,86225.0,86219.0,0.01146241]
[1764624229865,0.2435441,86227.0,86226.0,0.01146241]
[1764624230242,0.2435441,86227.0,86226.0,0.01157144]
[1764624232209,0.01159702,86229.0,86226.0,0.00010903]
[1764624232406,0.2435376,86229.0,86226.0,0.00110903]
[1764624232659,0.23194362,86228.0,86226.0,0.00110903]
[1764624232788,0.24353831,86229.0,86226.0,0.00110903]
[1764624232992,0.23194391,86228.0,86226.0,0.00010903]
[1764624233314,0.01159702,86229.0,86226.0,0.00010903]
[1764624233510,0.24354288,86229.0,86226.0,0.00010903]
[1764624233807,0.01159702,86229.0,86226.0,0.00010903]
[1764624233975,0.23194322,86228.0,86227.0,0.01146241]
[1764624235062,0.2435385,86229.0,86227.0,0.01246241]
[1764624235352,0.00025549,86235.0,86231.0,0.01159675]
[1764624235569,0.0118517,86235.0,86227.0,0.001]
[1764624235802,0.01159689,86230.0,86227.0,0.001]
[1764624235995,0.01159689,86230.0,86226.0,0.00010903]
[1764624235996,0.23194591,86227.0,86226.0,0.00010903]
[1764624236799,0.6174689,86227.0,86226.0,0.00010903]
[1764624237530,0.86190082,86227.0,86226.0,0.00010903]
[1764624240519,0.00025549,86235.0,86223.0,0.01159783]
[1764624240719,0.00025549,86235.0,86225.0,0.01159756]
[1764624240922,0.00025549,86235.0,86234.0,0.01146241]
[1764624241378,0.00025549,86235.0,86232.0,0.01146241]
[1764624241578,0.01159662,86232.0,86224.0,0.01146241]
[1764624241819,0.01159716,86228.0,86217.0,0.4]
[1764624241997,0.01159783,86223.0,86222.0,0.01146241]
[1764624242194,0.01159783,86223.0,86220.0,0.01146241]
[1764624242195,0.01159796,86222.0,86220.0,0.01146241]
[1764624242398,0.2435545,86223.0,86220.0,0.01146241]
[1764624242598,0.01159796,86222.0,86221.0,0.01146241]
[1764624242797,0.01159743,86226.0,86218.0,0.0115985]
[1764624243043,0.23194264,86229.0,86227.0,0.01146241]
[1764624243402,0.01159648,86233.0,86219.0,0.24356407]
[1764624243696,0.01159769,86224.0,86217.0,0.40111589]
[1764624243911,0.00025549,86235.0,86219.0,0.01159837]
[1764624244110,0.01159716,86228.0,86221.0,0.01146241]
[1764624244311,0.01159675,86231.0,86226.0,0.01146241]
[1764624244829,0.01159716,86228.0,86220.0,0.01159823]
[1764624245010,0.23193864,86230.0,86220.0,0.01159823]
[1764624245011,0.24353553,86230.0,86221.0,0.0115981]
[1764624245211,0.23193126,86233.0,86223.0,0.01159783]
[1764624245568,0.25045959,86245.0,86234.0,0.01146241]
[1764624245569,0.01179554,86240.0,86234.0,0.01146241]
[1764624245713,0.01159595,86237.0,86234.0,0.01146241]
[1764624245902,0.01179554,86240.0,86234.0,0.01146241]
[1764624246102,0.01159595,86237.0,86234.0,0.01146241]
[1764624246344,0.0387903,86239.0,86234.0,0.01146241]
[1764624247775,0.23218149,86235.0,86234.0,0.001]
[1764624250547,0.00025549,86235.0,86234.0,0.001]
[1764624250753,0.00025549,86235.0,86234.0,0.01246241]
[1764624254404,0.00025549,86235.0,86234.0,2.23292708]
[1764624254591,0.00025549,86235.0,86234.0,2.62991248]
[1764624254985,0.00025549,86235.0,86234.0,3.02991248]
[1764624255189,1e-08,86235.0,86234.0,3.02991248]
[1764624255369,1e-08,86235.0,86234.0,3.07655672]
[1764624255782,0.0002,86240.0,86239.0,2.3969854]
[1764624255984,1e-08,86252.0,86251.0,2.62886676]
[1764624256183,1e-08,86252.0,86251.0,2.64746676]
[1764624256385,1e-08,86252.0,86247.0,0.23189212]
[1764624256386,1e-08,86252.0,86247.0,0.23189065]
[1764624256594,1e-08,86252.0,86248.0,0.01159447]
[1764624256809,1e-08,86252.0,86243.0,0.03019514]
[1764624257086,1e-08,86252.0,86251.0,0.01446241]
[1764624257490,1e-08,86252.0,86251.0,0.01146241]
[1764624257695,1e-08,86252.0,86251.0,0.33446241]
[1764624257898,1e-08,86252.0,86251.0,2.33446241]
[1764624258143,1e-08,86252.0,86251.0,2.48467168]
[1764624258606,1e-08,86252.0,86251.0,2.88467168]
[1764624258810,1e-08,86252.0,86251.0,2.7969854]
[1764624259366,1e-08,86252.0,86251.0,2.7989854]
[1764624259873,1e-08,86252.0,86251.0,2.78552299]
[1764624260216,1e-08,86252.0,86251.0,2.88717578]
[1764624260607,1e-08,86252.0,86251.0,2.88417578]
[1764624261042,4.008e-05,86264.0,86251.0,0.88717578]
[1764624261281,4.008e-05,86264.0,86263.0,0.67547875]
[1764624261526,4.008e-05,86264.0,86263.0,2.69407875]
[1764624261707,1e-08,86266.0,86265.0,2.62882913]
[1764624261884,0.2,86300.0,86299.0,0.2432148]
[1764624262118,0.2,86300.0,86299.0,0.2618148]
[1764624262317,0.2020742,86300.0,86299.0,0.65035239]
[1764624262612,0.2020742,86300.0,86299.0,0.6618148]
[1764624263057,0.2020742,86300.0,86299.0,0.66193069]
[1764624263275,0.2020742,86300.0,86299.0,0.97546828]
[1764624263564,0.2020742,86300.0,86299.0,0.7551783]
[1764624264723,0.2020742,86300.0,86299.0,0.4321783]
[1764624265059,0.2020742,86300.0,86299.0,0.41871589]
[1764624265507,0.2020742,86300.0,86299.0,0.02071589]
[1764624265839,0.2020742,86300.0,86299.0,0.00211589]
[1764624266026,0.2020742,86300.0,86299.0,0.0115783]
[1764624266231,0.2020742,86300.0,86299.0,0.0135783]
[1764624266633,0.2020742,86300.0,86299.0,0.0115783]
[1764624266991,0.2020742,86300.0,86299.0,0.0125783]
[1764624267394,0.2020742,86300.0,86299.0,0.00111589]
[1764624267819,0.2020742,86300.0,86299.0,0.0125783]
[1764624268232,0.2020742,86300.0,86299.0,0.0115783]
[1764624268626,0.2020742,86300.0,86299.0,0.0125783]
[1764624269123,0.2020742,86300.0,86299.0,0.0115783]
[1764624269303,0.2020742,86300.0,86299.0,0.01148005]
[1764624269493,0.2020742,86300.0,86299.0,0.01248005]
[1764624269863,0.2020742,86300.0,86299.0,0.01148005]
[1764624270250,0.2020742,86300.0,86299.0,0.01248005]
[1764624271062,0.2020742,86300.0,86299.0,0.41248005]
[1764624271485,0.2020742,86300.0,86299.0,0.41148005]
[1764624271658,0.2020742,86300.0,86299.0,0.402]
[1764624271800,0.2020742,86300.0,86299.0,0.64523244]
[1764624272201,0.2020742,86300.0,86299.0,0.64323244]
[1764624272404,0.2020742,86300.0,86299.0,0.64523244]
[1764624273048,0.2020742,86300.0,86299.0,0.64323244]
[1764624273245,0.2020742,86300.0,86299.0,0.64523244]
[1764624274773,0.2020742,86300.0,86299.0,0.24523244]
[1764624275352,0.2020742,86300.0,86299.0,0.64523244]
[1764624277114,0.2020742,86300.0,86299.0,0.41348005]
[1764624277314,0.2020742,86300.0,86299.0,0.64523244]
[1764624279062,0.2020742,86300.0,86299.0,0.95675239]
[1764624279307,0.2020742,86300.0,86299.0,0.96823244]
[1764624280605,0.2020742,86300.0,86299.0,0.96623244]
[1764624280819,0.01158292,86334.0,86299.0,0.96623244]
[1764624280820,0.23159719,86357.0,86337.0,0.01158251]
[1764624280965,0.01158064,86351.0,86342.0,0.01158184]
[1764624281164,0.0115797,86358.0,86350.0,0.01148005]
[1764624281165,0.23159406,86358.0,86350.0,0.01148005]
[1764624281385,0.24317869,86357.0,86350.0,0.01158077]
[1764624281593,0.24317869,86357.0,86356.0,0.01148005]
[1764624281794,0.01158023,86354.0,86345.0,0.01158144]
[1764624282009,0.01196876,86354.0,86352.0,0.01148005]
[1764624282185,0.01196876,86354.0,86345.0,0.01158144]
[1764624282186,0.00038853,86354.0,86345.0,0.01158144]
[1764624282388,0.00038853,86354.0,86350.0,0.01148005]
[1764624282618,0.00038853,86354.0,86350.0,0.01158077]
[1764624282842,0.00038853,86354.0,86353.0,0.01148005]
[1764624283272,0.00038853,86354.0,86339.0,0.01158225]
[1764624283273,0.01158091,86349.0,86339.0,0.01158225]
[1764624283484,0.01158198,86341.0,86331.0,0.41148005]
[1764624283693,0.24324158,86334.0,86331.0,0.41148005]
[1764624283893,0.01158412,86325.0,86317.0,0.01856]
[1764624284025,0.01158412,86325.0,86316.0,0.01148005]
[1764624284026,0.23168527,86324.0,86316.0,0.01148005]
[1764624284363,0.23168527,86324.0,86310.0,0.4]
[1764624284364,0.01158466,86321.0,86310.0,0.4]
[1764624284564,0.01158506,86318.0,86317.0,0.01148005]
[1764624284939,0.24328644,86318.0,86317.0,0.01148005]
[1764624285145,0.24328644,86318.0,86308.0,0.01148005]
[1764624285146,0.01158547,86315.0,86308.0,0.01148005]
[1764624285376,0.24329496,86315.0,86308.0,0.01148005]
[1764624285584,0.01158547,86315.0,86311.0,0.01148005]
[1764624285816,0.0115856,86314.0,86309.0,0.01158627]
[1764624286022,0.24329493,86315.0,86310.0,0.01158614]
[1764624286167,0.24328926,86317.0,86316.0,0.01148005]
[1764624286367,0.01158547,86315.0,86313.0,0.01148005]
[1764624286687,0.0004465,86314.0,86313.0,0.01148005]
[1764624287087,0.23215862,86314.0,86313.0,0.01148005]
[1764624287479,0.23215862,86314.0,86313.0,0.01348005]
[1764624287864,0.32379066,86314.0,86313.0,0.002]
[1764624288071,0.01158735,86301.0,86292.0,0.01148005]
[1764624288308,0.23175152,86300.0,86292.0,0.01148005]
[1764624288569,0.01158748,86300.0,86293.0,0.01158842]
[1764624288810,0.01158748,86300.0,86295.0,0.01148005]
[1764624289124,0.23173682,86305.0,86295.0,0.01148005]
[1764624289125,0.01158614,86310.0,86298.0,0.01158775]
[1764624289299,0.23174371,86303.0,86290.0,0.2317759]
[1764624289487,0.23174371,86303.0,86302.0,0.01148005]
[1764624290525,0.2317685,86293.0,86292.0,0.001]
[1764624290680,0.01158829,86294.0,86288.0,0.01158909]
[1764624290887,0.24335411,86294.0,86293.0,0.01148005]
[1764624292241,0.03095054,86334.0,86294.0,0.01158829]
[1764624292457,0.01158493,86319.0,86303.0,0.23174145]
[1764624292685,0.01158533,86316.0,86307.0,0.01148005]
[1764624292869,0.0115856,86314.0,86307.0,0.01158654]
[1764624293073,0.01158547,86315.0,86308.0,0.01148005]
[1764624293232,0.24329561,86315.0,86311.0,0.01148005]
[1764624293434,0.24329561,86315.0,86306.0,0.01158667]
[1764624293435,0.01158587,86312.0,86307.0,0.02306659]
[1764624293684,0.00025515,86308.0,86307.0,0.01148005]
[1764624294624,0.00025515,86308.0,86307.0,0.01248005]
[1764624294944,0.00025515,86308.0,86307.0,0.01148005]
[1764624295413,0.01197335,86318.0,86310.0,0.01158614]
[1764624295635,0.00038829,86318.0,86317.0,0.01148005]
[1764624295833,0.00038829,86318.0,86315.0,0.01148005]
[1764624296033,0.00025514,86316.0,86315.0,0.01148005]
[1764624297576,0.00025514,86316.0,86315.0,0.01248005]
[1764624300518,0.00025514,86316.0,86315.0,0.001]
[1764624300670,0.00025514,86316.0,86315.0,0.01248005]
[1764624300890,0.00025514,86316.0,86315.0,2.324]
[1764624301071,0.04184777,86387.0,86315.0,2.324]
[1764624301072,0.03138436,86390.0,86335.0,0.323]
[1764624301272,0.01157675,86380.0,86366.0,0.23157139]
[1764624301516,0.01157675,86380.0,86367.0,0.4]
[1764624301517,0.23155787,86372.0,86367.0,0.4]
[1764624301667,0.23154602,86376.0,86368.0,0.01148005]
[1764624301881,0.01157755,86374.0,86359.0,0.01157956]
[1764624302248,0.00999999,86400.0,86360.0,0.41157943]
[1764624302249,0.01157836,86368.0,86360.0,0.41157943]
[1764624302393,0.23160635,86369.0,86366.0,0.23156981]
[1764624302394,4.016e-05,86369.0,86366.0,0.23156981]
[1764624302599,4.016e-05,86369.0,86368.0,0.01148005]
[1764624302822,4.016e-05,86369.0,86368.0,0.03004005]
[1764624303230,4.016e-05,86369.0,86368.0,0.01856]
[1764624303631,4.016e-05,86369.0,86368.0,0.03004005]
[1764624303890,4.016e-05,86369.0,86368.0,0.01148004]
[1764624304098,4.016e-05,86369.0,86368.0,0.24404728]
[1764624304216,4.016e-05,86369.0,86368.0,0.23256724]
[1764624304454,4.016e-05,86369.0,86368.0,2.55556724]
[1764624304724,4.016e-05,86369.0,86368.0,0.24404728]
[1764624305385,4.016e-05,86369.0,86368.0,2.55556724]
[1764624305587,4.016e-05,86369.0,86368.0,0.24304728]
[1764624305886,4.016e-05,86369.0,86368.0,0.41348004]
[1764624306067,4.016e-05,86369.0,86368.0,0.402]
[1764624306250,4.016e-05,86369.0,86368.0,0.41348004]
[1764624307272,4.016e-05,86369.0,86368.0,0.64504728]
[1764624307695,0.00172928,86369.0,86368.0,0.41348004]
[1764624307890,0.00172928,86369.0,86368.0,0.402]
[1764624308895,0.00172928,86369.0,86368.0,0.002]
[1764624309448,0.01157903,86363.0,86360.0,0.00011599]
[1764624309646,0.23158601,86361.0,86360.0,0.00011599]
[1764624309849,0.23158601,86361.0,86360.0,0.01159603]
[1764624310553,0.23158601,86361.0,86360.0,0.01259603]
[1764624310699,0.23158601,86361.0,86360.0,0.00111599]
[1764624311425,0.25014601,86361.0,86360.0,0.01259603]
[1764624311813,0.25014601,86361.0,86360.0,0.01159603]
[1764624312207,0.01157903,86363.0,86360.0,0.00111599]
[1764624312410,4.016e-05,86369.0,86363.0,0.01157903]
[1764624312690,0.24315582,86365.0,86364.0,0.01148004]
[1764624313674,0.01157876,86365.0,86364.0,0.01148004]
[1764624314661,4.016e-05,86369.0,86364.0,0.01157889]
[1764624314999,4.016e-05,86369.0,86368.0,0.01148004]
[1764624315449,0.00172928,86369.0,86368.0,0.01148004]
[1764624316834,0.00172928,86369.0,86368.0,0.01348004]
[1764624317063,0.00172928,86369.0,86368.0,0.002]
[1764624318186,0.23158601,86361.0,86360.0,0.00011599]
[1764624318500,0.2515803,86361.0,86360.0,0.00011599]
[1764624320098,0.2330203,86361.0,86360.0,0.00011599]
[1764624320239,0.2515803,86361.0,86360.0,0.00011599]
[1764624320670,0.3300349,86361.0,86360.0,0.00011599]
[1764624321231,0.2330203,86361.0,86360.0,0.00011599]
[1764624321477,0.01999429,86361.0,86360.0,0.00011599]
[1764624321639,0.2515803,86361.0,86360.0,0.00011599]
[1764624324420,0.2330203,86361.0,86360.0,0.00011599]
[1764624324721,0.2515803,86361.0,86360.0,0.00011599]
[1764624329094,0.2330203,86361.0,86360.0,0.00011599]
[1764624329299,0.2515803,86361.0,86360.0,0.00011599]
[1764624330583,0.01856,86361.0,86360.0,0.00011599]
[1764624330897,0.25014601,86361.0,86360.0,0.00011599]
[1764624331508,0.32379276,86361.0,86360.0,0.00011599]
[1764624332245,0.64679276,86361.0,86360.0,0.00011599]
[1764624332583,0.70931575,86361.0,86360.0,0.00011599]
[1764624332914,0.73424189,86361.0,86360.0,0.00011599]
[1764624333419,0.57951215,86361.0,86360.0,0.00011599]
[1764624333567,0.57310601,86361.0,86360.0,0.00011599]
[1764624334343,0.635629,86361.0,86360.0,0.00011599]
[1764624334543,0.90497872,86361.0,86360.0,0.00011599]
[1764624335084,0.88645872,86361.0,86360.0,0.00011599]
[1764624335288,1.02020468,86361.0,86360.0,0.00011599]
[1764624337437,1.00168468,86361.0,86360.0,0.00011599]
[1764624337637,1.02020468,86361.0,86360.0,0.00011599]
[1764624340758,0.23158601,86361.0,86360.0,0.00011599]
[1764624341160,0.27823025,86361.0,86360.0,0.00011599]
[1764624341359,0.23158601,86361.0,86360.0,0.00011599]
[1764624342812,0.23158601,86361.0,86360.0,0.00111599]
[1764624343430,0.23158601,86361.0,86360.0,0.00011599]
[1764624348192,0.25010601,86361.0,86360.0,0.00011599]
[1764624351994,0.25010601,86361.0,86360.0,0.00111599]
[1764624353560,0.23158601,86361.0,86360.0,0.00111599]
[1764624353764,0.01157863,86366.0,86360.0,0.00111599]
[1764624353765,0.01157849,86367.0,86360.0,0.00111599]
[1764624354003,0.01157889,86364.0,86363.0,0.01148004]
[1764624354181,0.01157849,86367.0,86366.0,0.01148004]
[1764624354380,0.01157863,86366.0,86363.0,0.4]
[1764624354580,0.00029506,86369.0,86365.0,0.01148004]
[1764624354802,0.00029506,86369.0,86368.0,0.01148004]
[1764624356612,0.00029506,86369.0,86368.0,0.01248004]
[1764624358037,0.00029506,86369.0,86368.0,0.01148004]
[1764624358383,0.00029506,86369.0,86363.0,0.4]
[1764624358384,0.01157836,86368.0,86363.0,0.41157903]
[1764624358593,0.01157836,86368.0,86365.0,0.01157876]
[1764624358788,0.01157836,86368.0,86367.0,0.01148004]
[1764624359215,0.24343864,86369.0,86368.0,0.01248004]
[1764624359597,0.24343864,86369.0,86368.0,0.01148004]
[1764624360218,0.00029506,86369.0,86368.0,0.01148004]
[1764624360389,0.00029506,86369.0,86367.0,0.23156956]
[1764624360590,0.00029506,86369.0,86368.0,0.01148004]
[1764624361699,0.00029506,86369.0,86368.0,0.01248004]
[1764624362010,0.00029506,86369.0,86368.0,0.41248004]
[1764624362201,0.00029506,86369.0,86368.0,0.64304728]
[1764624362544,0.00029506,86369.0,86368.0,0.64504728]
[1764624363102,0.23185962,86369.0,86368.0,0.002]
[1764624363308,0.30367277,86369.0,86368.0,0.002]
[1764624363526,0.23185962,86369.0,86368.0,0.002]
[1764624363869,0.23158601,86361.0,86360.0,0.00011599]
[1764624364075,0.29675025,86361.0,86360.0,0.00011599]
[1764624364494,0.61975025,86361.0,86360.0,0.00011599]
[1764624364719,0.64560006,86361.0,86360.0,0.00011599]
[1764624364924,0.61975025,86361.0,86360.0,0.00011599]
[1764624367885,0.55458601,86361.0,86360.0,0.00011599]
[1764624368084,0.57310601,86361.0,86360.0,0.00011599]
[1764624368287,0.61975025,86361.0,86360.0,0.00011599]
[1764624368950,0.60123025,86361.0,86360.0,0.00011599]
[1764624369085,0.61975025,86361.0,86360.0,0.00011599]
[1764624369434,0.25010601,86361.0,86360.0,0.00011599]
[1764624369635,0.06674602,86364.0,86360.0,0.00011599]
[1764624369834,0.23158601,86361.0,86360.0,0.00011599]
[1764624370380,0.23158601,86361.0,86360.0,0.01159603]
[1764624370579,0.23158601,86361.0,86360.0,0.00011599]